[Event "Titled Tuesday Blitz March 14 Late 2023"]
[White "Fan_Of_Chucky"]
[Black "ArchibaldCerveza29"]
[WhiteElo "2357"]
[BlackElo "2496"]
[Result "1-0"]
[Round "11"]
[TimeControl "180+2"]
[Date "2023.03.14"]
[WhiteClock "0:00:10"]
[BlackClock "0:00:12"]

1. d4 {[%clk 0:02:58]}  d5 {[%clk 0:02:59]} 2. c4 {[%clk 0:02:59]}  e6 {[%clk 0:02:59]} 3. Nc3 {[%clk 0:02:59]}  Nf6 {[%clk 0:03:00]} 4. cxd5 {[%clk 0:02:58]}  exd5 {[%clk 0:03:00]} 5. Bg5 {[%clk 0:02:57]}  c6 {[%clk 0:03:01]} 6. e3 {[%clk 0:02:56]}  h6 {[%clk 0:03:02]} 7. Bh4 {[%clk 0:02:56]}  Bd6 {[%clk 0:03:02]} 8. Bd3 {[%clk 0:02:52]}  O-O {[%clk 0:03:03]} 9. Qc2 {[%clk 0:02:48]}  Re8 {[%clk 0:03:02]} 10. Nge2 {[%clk 0:02:39]}  a5 {[%clk 0:03:02]} 11. h3 {[%clk 0:02:13]}  Na6 {[%clk 0:03:02]} 12. a3 {[%clk 0:02:08]}  Nc7 {[%clk 0:03:03]} 13. O-O {[%clk 0:02:06]}  Ne6 {[%clk 0:03:02]} 14. f3 {[%clk 0:02:01]}  Ng5 {[%clk 0:03:01]} 15. f4 {[%clk 0:01:57]}  Ne6 {[%clk 0:03:01]} 16. Rf3 {[%clk 0:01:56]}  Be7 {[%clk 0:02:59]} 17. Raf1 {[%clk 0:01:52]}  b5 {[%clk 0:02:57]} 18. Ng3 {[%clk 0:01:50]}  Nf8 {[%clk 0:02:52]} 19. Nce2 {[%clk 0:01:45]}  Bd7 {[%clk 0:02:40]} 20. Nf5 {[%clk 0:01:42]}  Bxf5 {[%clk 0:02:39]} 21. Bxf5 {[%clk 0:01:43]}  Qd6 {[%clk 0:02:39]} 22. g4 {[%clk 0:01:35]}  Ne4 {[%clk 0:02:25]} 23. Bxe7 {[%clk 0:01:32]}  Rxe7 {[%clk 0:02:26]} 24. Bxe4 {[%clk 0:01:29]}  Rxe4 {[%clk 0:02:27]} 25. Ng3 {[%clk 0:01:22]}  Ree8 {[%clk 0:02:25]} 26. g5 {[%clk 0:01:16]}  Ra7 {[%clk 0:01:52]} 27. Nf5 {[%clk 0:01:12]}  Qg6 {[%clk 0:01:50]} 28. h4 {[%clk 0:01:07]}  Nh7 {[%clk 0:01:34]} 29. Kh1 {[%clk 0:01:01]}  Qh5 {[%clk 0:01:29]} 30. Qxc6 {[%clk 0:00:50]}  Raa8 {[%clk 0:01:21]} 31. Qxd5 {[%clk 0:00:48]}  g6 {[%clk 0:01:08]} 32. Nxh6+ {[%clk 0:00:44]}  Kh8 {[%clk 0:01:08]} 33. Nxf7+ {[%clk 0:00:40]}  Kg7 {[%clk 0:01:08]} 34. Nh6 {[%clk 0:00:39]}  Qxh4+ {[%clk 0:01:07]} 35. Kg1 {[%clk 0:00:35]}  Ra7 {[%clk 0:01:06]} 36. Kg2 {[%clk 0:00:32]}  Rc7 {[%clk 0:00:44]} 37. R3f2 {[%clk 0:00:22]}  Nf6 {[%clk 0:00:17]} 38. gxf6+ {[%clk 0:00:23]}  Qxf6 {[%clk 0:00:17]} 39. Ng4 {[%clk 0:00:22]}  Qh4 {[%clk 0:00:14]} 40. Qg5 {[%clk 0:00:17]}  Qxg5 {[%clk 0:00:11]} 41. fxg5 {[%clk 0:00:18]}  Re4 {[%clk 0:00:11]} 42. Ne5 {[%clk 0:00:13]}  Rxe3 {[%clk 0:00:10]} 43. Rf7+ {[%clk 0:00:14]}  Rxf7 {[%clk 0:00:11]} 44. Rxf7+ {[%clk 0:00:14]}  Kg8 {[%clk 0:00:12]} 45. Rb7 {[%clk 0:00:13]}  Rb3 {[%clk 0:00:12]} 46. Nxg6 {[%clk 0:00:12]}  Rxb2+ {[%clk 0:00:12]} 47. Kg3 {[%clk 0:00:13]}  Rb3+ {[%clk 0:00:13]} 48. Kg4 {[%clk 0:00:13]}  Rxa3 {[%clk 0:00:11]} 49. Kf5 {[%clk 0:00:11]}  Rf3+ {[%clk 0:00:10]} 50. Kg4 {[%clk 0:00:11]}  Rd3 {[%clk 0:00:10]} 51. Rxb5 {[%clk 0:00:11]}  Rxd4+ {[%clk 0:00:10]} 52. Kh5 {[%clk 0:00:10]}  Rd1 {[%clk 0:00:10]} 53. Rxa5 {[%clk 0:00:09]}  Rh1+ {[%clk 0:00:10]} 54. Nh4 {[%clk 0:00:10]}  Kf7 {[%clk 0:00:10]} 55. Ra7+ {[%clk 0:00:10]}  Kg8 {[%clk 0:00:10]} 56. Kg6 {[%clk 0:00:09]}  Kf8 {[%clk 0:00:11]} 57. Ra8+ {[%clk 0:00:09]}  Ke7 {[%clk 0:00:12]} 58. Nf5+ {[%clk 0:00:08]}  Ke6 {[%clk 0:00:12]} 59. Re8+ {[%clk 0:00:07]}  Kd7 {[%clk 0:00:13]} 60. Re7+ {[%clk 0:00:07]}  Kd8 {[%clk 0:00:13]} 61. Ra7 {[%clk 0:00:07]}  Rf1 {[%clk 0:00:13]} 62. Ng7 {[%clk 0:00:07]}  Kc8 {[%clk 0:00:12]} 63. Kh6 {[%clk 0:00:06]}  Kb8 {[%clk 0:00:13]} 64. Re7 {[%clk 0:00:06]}  Rh1+ {[%clk 0:00:11]} 65. Nh5 {[%clk 0:00:06]}  Rc1 {[%clk 0:00:11]} 66. g6 {[%clk 0:00:06]}  Rc8 {[%clk 0:00:11]} 67. g7 {[%clk 0:00:05]}  Ka8 {[%clk 0:00:11]} 68. Rf7 {[%clk 0:00:06]}  Kb8 {[%clk 0:00:10]} 69. Rf8 {[%clk 0:00:06]}  Kb7 {[%clk 0:00:11]} 70. Rxc8 {[%clk 0:00:06]}  Kxc8 {[%clk 0:00:10]} 71. g8=Q+ {[%clk 0:00:07]}  Kb7 {[%clk 0:00:11]} 72. Qe6 {[%clk 0:00:07]}  Ka7 {[%clk 0:00:11]} 73. Qc6 {[%clk 0:00:06]}  Kb8 {[%clk 0:00:10]} 74. Qd7 {[%clk 0:00:07]}  Ka8 {[%clk 0:00:10]} 75. Kg6 {[%clk 0:00:08]}  Kb8 {[%clk 0:00:11]} 76. Kf6 {[%clk 0:00:09]}  Ka8 {[%clk 0:00:12]} 77. Ke6 {[%clk 0:00:10]} 1-0


[Site "https://www.chess.com"]

[Event "Titled Tuesday Blitz March 14 Late 2023"]
[White "Blanco Acevedo, Cristobal Jose"]
[Black "Weetik, Vjacheslav"]
[WhiteFideId "3900525"]
[BlackFideId "4153472"]
[WhiteElo "2278"]
[BlackElo "2469"]
[Result "1-0"]
[Round "11"]
[TimeControl "180+2"]
[Date "2023.03.14"]
[WhiteClock "0:01:03"]
[BlackClock "0:00:02"]

1. e4 {[%clk 0:03:00]}  c5 {[%clk 0:02:57]} 2. Nf3 {[%clk 0:03:00]}  e6 {[%clk 0:02:54]} 3. d4 {[%clk 0:03:00]}  cxd4 {[%clk 0:02:55]} 4. Nxd4 {[%clk 0:03:00]}  Nf6 {[%clk 0:02:56]} 5. Nc3 {[%clk 0:03:00]}  Nc6 {[%clk 0:02:57]} 6. Ndb5 {[%clk 0:03:00]}  d6 {[%clk 0:02:53]} 7. Bf4 {[%clk 0:03:01]}  e5 {[%clk 0:02:53]} 8. Bg5 {[%clk 0:03:01]}  a6 {[%clk 0:02:54]} 9. Bxf6 {[%clk 0:03:01]}  gxf6 {[%clk 0:02:51]} 10. Na3 {[%clk 0:03:01]}  f5 {[%clk 0:02:52]} 11. Bc4 {[%clk 0:02:59]}  Nd4 {[%clk 0:01:50]} 12. Qh5 {[%clk 0:02:52]}  Qc7 {[%clk 0:00:45]} 13. Nd5 {[%clk 0:02:50]}  Qa5+ {[%clk 0:00:45]} 14. c3 {[%clk 0:02:49]}  Be6 {[%clk 0:00:33]} 15. O-O {[%clk 0:02:39]}  Nc6 {[%clk 0:00:31]} 16. Rad1 {[%clk 0:02:13]}  fxe4 {[%clk 0:00:13]} 17. Nf6+ {[%clk 0:02:03]}  Ke7 {[%clk 0:00:13]} 18. Bxe6 {[%clk 0:01:59]}  fxe6 {[%clk 0:00:08]} 19. Nxe4 {[%clk 0:01:53]}  d5 {[%clk 0:00:04]} 20. Qg5+ {[%clk 0:01:53]}  Kd7 {[%clk 0:00:03]} 21. Nf6+ {[%clk 0:01:53]}  Kc7 {[%clk 0:00:01]} 22. Nc2 {[%clk 0:01:36]}  Be7 {[%clk 0:00:02]} 23. Nb4 {[%clk 0:01:34]}  Raf8 {[%clk 0:00:01]} 24. Nxc6 {[%clk 0:01:33]}  Bxf6 {[%clk 0:00:02]} 25. Qxf6 {[%clk 0:01:29]}  bxc6 {[%clk 0:00:02]} 26. Qxe5+ {[%clk 0:01:27]}  Kd7 {[%clk 0:00:03]} 27. Rfe1 {[%clk 0:01:17]}  Re8 {[%clk 0:00:03]} 28. Qg7+ {[%clk 0:01:17]}  Kc8 {[%clk 0:00:03]} 29. Rxe6 {[%clk 0:01:14]}  Rxe6 {[%clk 0:00:03]} 30. Qxh8+ {[%clk 0:01:14]}  Kd7 {[%clk 0:00:03]} 31. Qxh7+ {[%clk 0:01:14]}  Re7 {[%clk 0:00:04]} 32. Qf5+ {[%clk 0:01:14]}  Kc7 {[%clk 0:00:04]} 33. Qf4+ {[%clk 0:01:12]}  Kb7 {[%clk 0:00:04]} 34. a3 {[%clk 0:01:10]}  Qb5 {[%clk 0:00:03]} 35. Qb4 {[%clk 0:01:09]}  Re2 {[%clk 0:00:04]} 36. Qxb5+ {[%clk 0:01:06]}  axb5 {[%clk 0:00:04]} 37. Rb1 {[%clk 0:01:06]}  c5 {[%clk 0:00:03]} 38. h4 {[%clk 0:01:07]}  Kc6 {[%clk 0:00:03]} 39. g4 {[%clk 0:01:05]}  c4 {[%clk 0:00:01]} 40. Kg2 {[%clk 0:01:03]}  d4 {[%clk 0:00:01]} 41. cxd4 {[%clk 0:01:03]}  Kd5 {[%clk 0:00:02]} 42. Kf3 {[%clk 0:01:03]}  Rd2 {[%clk 0:00:02]} 43. h5 {[%clk 0:01:03]}  Rxd4 {[%clk 0:00:02]} 44. h6 {[%clk 0:01:03]} 1-0


[Site "https://www.chess.com"]

[Event "Titled Tuesday Blitz March 14 Late 2023"]
[White "Karttunen, Mika"]
[Black "marik_spb"]
[WhiteFideId "502081"]
[WhiteElo "2396"]
[BlackElo "2414"]
[Result "0-1"]
[Round "11"]
[TimeControl "180+2"]
[Date "2023.03.14"]
[WhiteClock "0:00:07"]
[BlackClock "0:00:02"]

1. e4 {[%clk 0:03:00]}  c6 {[%clk 0:02:59]} 2. d4 {[%clk 0:03:00]}  d5 {[%clk 0:02:59]} 3. e5 {[%clk 0:02:59]}  Bf5 {[%clk 0:02:59]} 4. h4 {[%clk 0:03:00]}  h5 {[%clk 0:02:58]} 5. Bd3 {[%clk 0:03:00]}  Bxd3 {[%clk 0:02:59]} 6. Qxd3 {[%clk 0:03:00]}  Qa5+ {[%clk 0:02:59]} 7. Bd2 {[%clk 0:02:59]}  Qa6 {[%clk 0:02:54]} 8. e6 {[%clk 0:02:59]}  Qxd3 {[%clk 0:02:53]} 9. exf7+ {[%clk 0:02:59]}  Kxf7 {[%clk 0:02:54]} 10. cxd3 {[%clk 0:02:59]}  g6 {[%clk 0:02:50]} 11. Nf3 {[%clk 0:02:59]}  Nd7 {[%clk 0:02:48]} 12. Bc3 {[%clk 0:02:59]}  Bg7 {[%clk 0:02:40]} 13. Nbd2 {[%clk 0:02:59]}  Nh6 {[%clk 0:02:38]} 14. Ng5+ {[%clk 0:02:55]}  Kg8 {[%clk 0:02:36]} 15. Ndf3 {[%clk 0:02:50]}  Nf5 {[%clk 0:02:34]} 16. Ne6 {[%clk 0:02:50]}  Nf8 {[%clk 0:02:28]} 17. Neg5 {[%clk 0:02:29]}  Bf6 {[%clk 0:02:27]} 18. g3 {[%clk 0:02:27]}  Bxg5 {[%clk 0:02:25]} 19. Nxg5 {[%clk 0:02:27]}  Nh7 {[%clk 0:02:25]} 20. Nf3 {[%clk 0:02:26]}  Kg7 {[%clk 0:02:22]} 21. O-O {[%clk 0:02:25]}  Rhf8 {[%clk 0:02:21]} 22. Kg2 {[%clk 0:02:25]}  Nf6 {[%clk 0:02:18]} 23. Rae1 {[%clk 0:02:22]}  Ng4 {[%clk 0:02:18]} 24. Bd2 {[%clk 0:02:18]}  Rae8 {[%clk 0:02:14]} 25. Re6 {[%clk 0:02:05]}  Rf6 {[%clk 0:02:13]} 26. Re2 {[%clk 0:02:01]}  Kf8 {[%clk 0:01:11]} 27. Bg5 {[%clk 0:01:43]}  Rf7 {[%clk 0:01:00]} 28. Rfe1 {[%clk 0:01:34]}  a6 {[%clk 0:00:45]} 29. Re6 {[%clk 0:01:28]}  Kg7 {[%clk 0:00:44]} 30. Bf4 {[%clk 0:01:18]}  Rf6 {[%clk 0:00:33]} 31. Rxf6 {[%clk 0:01:04]}  Nxf6 {[%clk 0:00:24]} 32. Be5 {[%clk 0:01:04]}  Kf8 {[%clk 0:00:23]} 33. Ng5 {[%clk 0:01:00]}  Ng4 {[%clk 0:00:18]} 34. Ne6+ {[%clk 0:00:54]}  Kf7 {[%clk 0:00:18]} 35. Bf4 {[%clk 0:00:49]}  Ng7 {[%clk 0:00:13]} 36. Ng5+ {[%clk 0:00:47]}  Kg8 {[%clk 0:00:11]} 37. f3 {[%clk 0:00:45]}  Nf6 {[%clk 0:00:11]} 38. Be5 {[%clk 0:00:44]}  Nh7 {[%clk 0:00:11]} 39. Nh3 {[%clk 0:00:44]}  Kf7 {[%clk 0:00:10]} 40. Bxg7 {[%clk 0:00:43]}  Kxg7 {[%clk 0:00:11]} 41. Nf4 {[%clk 0:00:42]}  Kf7 {[%clk 0:00:09]} 42. Ne6 {[%clk 0:00:42]}  Nf8 {[%clk 0:00:08]} 43. Ng5+ {[%clk 0:00:42]}  Kf6 {[%clk 0:00:09]} 44. Re5 {[%clk 0:00:41]}  e6 {[%clk 0:00:09]} 45. f4 {[%clk 0:00:40]}  Nd7 {[%clk 0:00:09]} 46. Re2 {[%clk 0:00:40]}  c5 {[%clk 0:00:08]} 47. dxc5 {[%clk 0:00:39]}  Nxc5 {[%clk 0:00:09]} 48. d4 {[%clk 0:00:39]}  Nd3 {[%clk 0:00:08]} 49. Rd2 {[%clk 0:00:34]}  Nb4 {[%clk 0:00:08]} 50. a3 {[%clk 0:00:30]}  Nc6 {[%clk 0:00:09]} 51. Kf3 {[%clk 0:00:30]}  Rc8 {[%clk 0:00:09]} 52. Ke3 {[%clk 0:00:29]}  Ne7 {[%clk 0:00:09]} 53. Kd3 {[%clk 0:00:29]}  Nf5 {[%clk 0:00:09]} 54. Re2 {[%clk 0:00:29]}  Rc6 {[%clk 0:00:09]} 55. Rg2 {[%clk 0:00:27]}  Rc4 {[%clk 0:00:09]} 56. Nf3 {[%clk 0:00:26]}  b5 {[%clk 0:00:10]} 57. Re2 {[%clk 0:00:22]}  Nxg3 {[%clk 0:00:09]} 58. Rg2 {[%clk 0:00:21]}  Nf5 {[%clk 0:00:09]} 59. Re2 {[%clk 0:00:19]}  b4 {[%clk 0:00:08]} 60. axb4 {[%clk 0:00:18]}  Rxb4 {[%clk 0:00:08]} 61. Kc3 {[%clk 0:00:18]}  Rc4+ {[%clk 0:00:09]} 62. Kd3 {[%clk 0:00:18]}  Rb4 {[%clk 0:00:06]} 63. Kc3 {[%clk 0:00:18]}  a5 {[%clk 0:00:07]} 64. b3 {[%clk 0:00:17]}  Nd6 {[%clk 0:00:07]} 65. Ra2 {[%clk 0:00:12]}  Ne4+ {[%clk 0:00:05]} 66. Kc2 {[%clk 0:00:12]}  Rb5 {[%clk 0:00:04]} 67. Ra4 {[%clk 0:00:12]}  Kf5 {[%clk 0:00:04]} 68. Ne5 {[%clk 0:00:11]}  Kxf4 {[%clk 0:00:03]} 69. Nxg6+ {[%clk 0:00:11]}  Ke3 {[%clk 0:00:03]} 70. Nf8 {[%clk 0:00:07]}  Rb6 {[%clk 0:00:03]} 71. Nd7 {[%clk 0:00:07]}  Rc6+ {[%clk 0:00:03]} 72. Kb2 {[%clk 0:00:08]}  Nc3 {[%clk 0:00:02]} 73. Rxa5 {[%clk 0:00:08]}  Kxd4 {[%clk 0:00:02]} 74. Nf6 {[%clk 0:00:08]}  Nd1+ {[%clk 0:00:02]} 75. Kb1 {[%clk 0:00:06]}  Rb6 {[%clk 0:00:01]} 76. Kc2 {[%clk 0:00:06]}  Ne3+ {[%clk 0:00:02]} 77. Kb2 {[%clk 0:00:07]}  Nc4+ {[%clk 0:00:02]} 0-1


[Site "https://www.chess.com"]

[Event "Titled Tuesday Blitz March 14 Late 2023"]
[White "Dinu, Dumitru-Daniel"]
[Black "Janaszak, Dawid"]
[WhiteFideId "1208403"]
[BlackFideId "1119206"]
[WhiteElo "2240"]
[BlackElo "2220"]
[Result "1-0"]
[Round "11"]
[TimeControl "180+2"]
[Date "2023.03.14"]
[WhiteClock "0:00:04"]
[BlackClock "0:00:03"]

1. e4 {[%clk 0:03:00]}  e5 {[%clk 0:02:58]} 2. Nf3 {[%clk 0:03:00]}  Bc5 {[%clk 0:02:57]} 3. Nxe5 {[%clk 0:02:53]}  Nc6 {[%clk 0:02:55]} 4. Nxc6 {[%clk 0:02:49]}  dxc6 {[%clk 0:02:55]} 5. Nc3 {[%clk 0:02:40]}  Nf6 {[%clk 0:02:45]} 6. Be2 {[%clk 0:02:39]}  h5 {[%clk 0:02:41]} 7. O-O {[%clk 0:02:34]}  Ng4 {[%clk 0:02:37]} 8. g3 {[%clk 0:02:14]}  Qf6 {[%clk 0:02:12]} 9. Bf3 {[%clk 0:02:07]}  Ne5 {[%clk 0:02:01]} 10. Bg2 {[%clk 0:02:07]}  Bg4 {[%clk 0:02:00]} 11. Qe1 {[%clk 0:02:05]}  Nf3+ {[%clk 0:01:57]} 12. Bxf3 {[%clk 0:02:03]}  Bxf3 {[%clk 0:01:53]} 13. d4 {[%clk 0:01:53]}  Bxd4 {[%clk 0:01:40]} 14. Ne2 {[%clk 0:01:33]}  O-O-O {[%clk 0:01:19]} 15. Nxd4 {[%clk 0:01:29]}  Rxd4 {[%clk 0:01:20]} 16. Qa5 {[%clk 0:00:57]}  Qe6 {[%clk 0:01:09]} 17. Bf4 {[%clk 0:00:22]}  Kb8 {[%clk 0:00:43]} 18. Bxc7+ {[%clk 0:00:21]}  Ka8 {[%clk 0:00:39]} 19. Bb6 {[%clk 0:00:08]}  a6 {[%clk 0:00:37]} 20. Qf5 {[%clk 0:00:08]}  Qxf5 {[%clk 0:00:30]} 21. exf5 {[%clk 0:00:09]}  Rb4 {[%clk 0:00:25]} 22. Bc5 {[%clk 0:00:03]}  Rb5 {[%clk 0:00:25]} 23. Bd4 {[%clk 0:00:03]}  Rxf5 {[%clk 0:00:26]} 24. Rfe1 {[%clk 0:00:02]}  f6 {[%clk 0:00:25]} 25. Re3 {[%clk 0:00:02]}  h4 {[%clk 0:00:24]} 26. Rae1 {[%clk 0:00:02]}  Kb8 {[%clk 0:00:25]} 27. Bb6 {[%clk 0:00:02]}  Kc8 {[%clk 0:00:20]} 28. Re7 {[%clk 0:00:01]}  hxg3 {[%clk 0:00:19]} 29. Rc7+ {[%clk 0:00:02]}  Kb8 {[%clk 0:00:18]} 30. fxg3 {[%clk 0:00:02]}  Re5 {[%clk 0:00:13]} 31. Rxe5 {[%clk 0:00:01]}  fxe5 {[%clk 0:00:14]} 32. Rxg7 {[%clk 0:00:02]}  e4 {[%clk 0:00:13]} 33. Bc7+ {[%clk 0:00:02]}  Ka8 {[%clk 0:00:14]} 34. Be5 {[%clk 0:00:03]}  Rd8 {[%clk 0:00:14]} 35. Kf2 {[%clk 0:00:02]}  c5 {[%clk 0:00:13]} 36. Bf4 {[%clk 0:00:02]}  b5 {[%clk 0:00:13]} 37. Be3 {[%clk 0:00:02]}  Rd1 {[%clk 0:00:13]} 38. Bxc5 {[%clk 0:00:02]}  Rd2+ {[%clk 0:00:14]} 39. Ke3 {[%clk 0:00:02]}  Rxc2 {[%clk 0:00:14]} 40. Kd4 {[%clk 0:00:02]}  e3 {[%clk 0:00:14]} 41. Rg8+ {[%clk 0:00:03]}  Kb7 {[%clk 0:00:13]} 42. Rg7+ {[%clk 0:00:03]}  Kc6 {[%clk 0:00:13]} 43. Rg6+ {[%clk 0:00:04]}  Kd7 {[%clk 0:00:14]} 44. Rd6+ {[%clk 0:00:04]}  Kc7 {[%clk 0:00:14]} 45. Re6 {[%clk 0:00:03]}  e2 {[%clk 0:00:14]} 46. Bb6+ {[%clk 0:00:02]}  Kd7 {[%clk 0:00:14]} 47. Re5 {[%clk 0:00:02]}  Rc1 {[%clk 0:00:14]} 48. Ba5 {[%clk 0:00:01]}  Rd1+ {[%clk 0:00:13]} 49. Kc3 {[%clk 0:00:01]}  Kd6 {[%clk 0:00:12]} 50. Re3 {[%clk 0:00:01]}  Bg4 {[%clk 0:00:12]} 51. Kb3 {[%clk 0:00:01]}  Kc6 {[%clk 0:00:12]} 52. Kc2 {[%clk 0:00:01]}  Rd4 {[%clk 0:00:11]} 53. Bc3 {[%clk 0:00:02]}  Rd5 {[%clk 0:00:11]} 54. h3 {[%clk 0:00:02]}  Bxh3 {[%clk 0:00:09]} 55. Rxe2 {[%clk 0:00:02]}  Bg4 {[%clk 0:00:10]} 56. Re3 {[%clk 0:00:01]}  Rf5 {[%clk 0:00:11]} 57. Rd3 {[%clk 0:00:01]}  Rf2+ {[%clk 0:00:11]} 58. Kb3 {[%clk 0:00:01]}  Be6+ {[%clk 0:00:11]} 59. Ka3 {[%clk 0:00:01]}  Rg2 {[%clk 0:00:10]} 60. Bb4 {[%clk 0:00:02]}  Bd5 {[%clk 0:00:10]} 61. Rc3+ {[%clk 0:00:02]}  Kb7 {[%clk 0:00:10]} 62. Rc5 {[%clk 0:00:02]}  Bc4 {[%clk 0:00:10]} 63. Bc3 {[%clk 0:00:02]}  a5 {[%clk 0:00:09]} 64. Bxa5 {[%clk 0:00:02]}  Rxg3+ {[%clk 0:00:10]} 65. Bc3 {[%clk 0:00:02]}  Rf3 {[%clk 0:00:11]} 66. Kb4 {[%clk 0:00:03]}  Kb6 {[%clk 0:00:11]} 67. Re5 {[%clk 0:00:02]}  Kc6 {[%clk 0:00:10]} 68. b3 {[%clk 0:00:03]}  Bd5 {[%clk 0:00:10]} 69. Re7 {[%clk 0:00:03]}  Kd6 {[%clk 0:00:10]} 70. Re8 {[%clk 0:00:02]}  Bc6 {[%clk 0:00:10]} 71. Rd8+ {[%clk 0:00:03]}  Kc7 {[%clk 0:00:10]} 72. Rd4 {[%clk 0:00:03]}  Rf5 {[%clk 0:00:10]} 73. a4 {[%clk 0:00:03]}  bxa4 {[%clk 0:00:11]} 74. bxa4 {[%clk 0:00:04]}  Kb6 {[%clk 0:00:12]} 75. a5+ {[%clk 0:00:04]}  Rxa5 {[%clk 0:00:11]} 76. Rd6 {[%clk 0:00:05]}  Rb5+ {[%clk 0:00:12]} 77. Kc4 {[%clk 0:00:05]}  Kc7 {[%clk 0:00:13]} 78. Re6 {[%clk 0:00:05]}  Kb7 {[%clk 0:00:13]} 79. Re7+ {[%clk 0:00:05]}  Kc8 {[%clk 0:00:13]} 80. Bd4 {[%clk 0:00:05]}  Bd7 {[%clk 0:00:13]} 81. Rg7 {[%clk 0:00:05]}  Rf5 {[%clk 0:00:13]} 82. Rg8+ {[%clk 0:00:05]}  Kb7 {[%clk 0:00:13]} 83. Rg7 {[%clk 0:00:05]}  Kc6 {[%clk 0:00:13]} 84. Rg6+ {[%clk 0:00:05]}  Kc7 {[%clk 0:00:13]} 85. Rg7 {[%clk 0:00:06]}  Kc6 {[%clk 0:00:13]} 86. Rg6+ {[%clk 0:00:06]}  Kc7 {[%clk 0:00:13]} 87. Rg7 {[%clk 0:00:07]}  Kd8 {[%clk 0:00:14]} 88. Bb6+ {[%clk 0:00:06]}  Ke8 {[%clk 0:00:14]} 89. Bc5 {[%clk 0:00:06]}  Be6+ {[%clk 0:00:15]} 90. Kb4 {[%clk 0:00:05]}  Bf7 {[%clk 0:00:16]} 91. Rh7 {[%clk 0:00:05]}  Rf4+ {[%clk 0:00:16]} 92. Ka5 {[%clk 0:00:05]}  Rf5 {[%clk 0:00:15]} 93. Kb6 {[%clk 0:00:06]}  Rf6+ {[%clk 0:00:16]} 94. Kc7 {[%clk 0:00:05]}  Rf5 {[%clk 0:00:15]} 95. Rh8+ {[%clk 0:00:05]}  Bg8 {[%clk 0:00:16]} 96. Rxg8+ {[%clk 0:00:06]}  Kf7 {[%clk 0:00:16]} 97. Rf8+ {[%clk 0:00:06]}  Ke6 {[%clk 0:00:16]} 98. Re8+ {[%clk 0:00:06]}  Kf7 {[%clk 0:00:15]} 99. Re7+ {[%clk 0:00:06]}  Kf6 {[%clk 0:00:15]} 100. Bd6 {[%clk 0:00:03]}  Rf1 {[%clk 0:00:14]} 101. Kd7 {[%clk 0:00:04]}  Rd1 {[%clk 0:00:14]} 102. Re8 {[%clk 0:00:04]}  Kf7 {[%clk 0:00:14]} 103. Rf8+ {[%clk 0:00:04]}  Kg7 {[%clk 0:00:15]} 104. Re8 {[%clk 0:00:05]}  Rd2 {[%clk 0:00:15]} 105. Re3 {[%clk 0:00:05]}  Rd1 {[%clk 0:00:15]} 106. Ke7 {[%clk 0:00:06]}  Kg6 {[%clk 0:00:15]} 107. Rf3 {[%clk 0:00:06]}  Kg5 {[%clk 0:00:15]} 108. Be5 {[%clk 0:00:06]}  Kg4 {[%clk 0:00:15]} 109. Rf6 {[%clk 0:00:06]}  Re1 {[%clk 0:00:16]} 110. Ke6 {[%clk 0:00:06]}  Kg5 {[%clk 0:00:16]} 111. Rf8 {[%clk 0:00:06]}  Kg4 {[%clk 0:00:16]} 112. Rf4+ {[%clk 0:00:06]}  Kg5 {[%clk 0:00:16]} 113. Rf3 {[%clk 0:00:05]}  Kg4 {[%clk 0:00:16]} 114. Rg3+ {[%clk 0:00:05]}  Kh4 {[%clk 0:00:17]} 115. Rg7 {[%clk 0:00:05]}  Kh5 {[%clk 0:00:16]} 116. Kf5 {[%clk 0:00:06]}  Kh6 {[%clk 0:00:15]} 117. Rg8 {[%clk 0:00:06]}  Rf1+ {[%clk 0:00:14]} 118. Bf4+ {[%clk 0:00:04]}  Kh7 {[%clk 0:00:14]} 119. Rg4 {[%clk 0:00:04]}  Rf2 {[%clk 0:00:13]} 120. Kf6 {[%clk 0:00:04]}  Ra2 {[%clk 0:00:12]} 121. Rh4+ {[%clk 0:00:04]}  Kg8 {[%clk 0:00:12]} 122. Be5 {[%clk 0:00:04]}  Rf2+ {[%clk 0:00:11]} 123. Ke6 {[%clk 0:00:04]}  Rh2 {[%clk 0:00:03]} 124. Rxh2 {[%clk 0:00:04]} 1-0


[Site "https://www.chess.com"]